Cogmind - Beta 15 @@@ ROGUE MODE // 2025.07.26 @ 18:26:46 Player: FrigidRock Result: Escaped! Performance ------------- Evolutions (9) 4500 Regions Visited (21) 4200 Robots Destroyed (270) 1350 Value Destroyed (16422) 16422 Prototype IDs (16) 320 Alien Tech Used (0) 0 Bonus (17243) 17243 TOTAL SCORE: 44035 Bonus ------- High Alert Combat Kills 3183 Follower Combat Kills 5539 Entered Garrisons 1600 Used RIF Installer 4000 Win 3000 Friendly Fire -79 Cogmind --------- Core Integrity 1420/1600 Matter 256/300 Energy 576/590 System Corruption 2% Temperature Cool (16) Movement Treading (250) Ox1 Location To Epsilon Eridani Parts ------- > --- POWER (2) -------- Particle Reactor Improved Quantum Reactor > --- PROPULSION (6) --- Advanced Heavy Siege Treads Advanced Heavy Siege Treads > --- UTILITY (14) ----- Huge Storage Unit Advanced Targeting Computer Experimental Core Analyzer Improved Remote Force Field Improved Hacking Suite Advanced Hacking Suite Relay Coupler [NC] (3) Relay Coupler [Cutter] (15) Relay Coupler [Grunt] (11) Relay Coupler [Duelist] (24) Relay Coupler [Sentry] (22) Relay Coupler [Behemoth] (5) > --- WEAPON (3) ------- Enhanced Hardcell Cannon Enhanced Hardcell Cannon Gamma Bomb Array > --- INVENTORY (25) --- Energy Well (350) Large Matter Pod (150) Compact Matter Pod (150) Advanced Kinecellerator Graphene Brace Improved Remote Force Field Relay Coupler [NC] (29) Relay Coupler [Brawler] (22) Relay Coupler [Sentry] (29) Relay Coupler [Demolisher] (20) Relay Coupler [Heavy] (16) Relay Coupler [Proto] (10) Relay Coupler [Proto] (10) Relay Coupler [Proto] (10) Relay Coupler [Proto] (10) Enhanced Hardcell Cannon Enhanced Hardcell Cannon Enhanced Hardcell Cannon Advanced Remote Datajack Advanced Remote Datajack Advanced Remote Datajack Peak State ------------ > --- POWER ------------ Improved Quantum Reactor Improved Quantum Reactor > --- PROPULSION ------- Improved Heavy Treads Advanced Heavy Siege Treads Advanced Heavy Siege Treads > --- UTILITY ---------- Huge Storage Unit Advanced Targeting Computer Experimental Core Analyzer Advanced Kinecellerator Hardened Heavy Armor Plating Graphene Brace Improved Hacking Suite Advanced Hacking Suite Relay Coupler [Cutter] Relay Coupler [Grunt] Relay Coupler [Duelist] Relay Coupler [Sentry] Relay Coupler [Behemoth] > --- WEAPON ----------- Enhanced Hardcell Cannon Enhanced Hardcell Cannon Enhanced Hardcell Cannon > --- INVENTORY -------- Particle Reactor Energy Well Large Matter Pod Improved Remote Force Field Improved Remote Force Field Relay Coupler [NC] Relay Coupler [Brawler] Relay Coupler [Sentry] Relay Coupler [Sentry] Relay Coupler [Sentry] Relay Coupler [Demolisher] Relay Coupler [Heavy] Relay Coupler [Proto] Relay Coupler [Proto] Relay Coupler [Proto] Relay Coupler [Proto] Enhanced Hardcell Cannon Enhanced Hardcell Cannon Gamma Bomb Array Advanced Remote Datajack Advanced Remote Datajack Advanced Remote Datajack [Rating: 179] Favorites ----------- Power Reinforced Fission Core Engine Heavy Deuterium Engine Power Core Reinforced Fission Core Reactor Improved Quantum Reactor Propulsion Armored Leg Treads Advanced Heavy Siege Treads Leg Armored Leg Wheel Armored Huge Wheel Flight Unit Improved Flight Unit Utility Huge Storage Unit Device Improved Remote Force Field Storage Huge Storage Unit Processor Improved Targeting Computer Hackware Relay Coupler [Grunt] Protection Improved Light Armor Plating Weapon Linear Accelerator Energy Gun Small Laser Energy Cannon Heavy Ion Cannon Ballistic Gun Light Assault Rifle Ballistic Cannon Linear Accelerator Launcher Heavy Missile Launcher Special Weapon Remote Datajack Build | -11 -10 -9 -8 -8 -7 -7 -7 -7 -6 -6 -5 -5 -4 -4 -3 -3 -2 -2 -1 -1 -1 ------- Run | Yrd Mat Mat Mat Sto Fac Gar Fac Gar Fac Gar Fac Gar Fac Gar Res Gar Res Gar Acc Gar Acc Slots Evolved 18 | . . 2 2 . 2 . . . 2 . 2 . 2 . 2 . 2 . 2 . . Power 1 | . . . . . . . . . . . 1 . . . . . . . . . . Propulsion 4 | . . 1 . . 1 . . . . . . . 1 . . . 1 . . . . Utility 12 | . . 1 2 . 1 . . . 2 . 1 . 1 . 2 . 1 . 1 . . Weapon 1 | . . . . . . . . . . . . . . . . . . . 1 . . Parts Attached 285 | 6 5 21 32 11 14 24 6 18 5 21 11 11 . 23 13 9 17 17 4 12 5 Power 34 | 1 . 5 4 1 2 5 . 1 . 2 3 1 . 2 1 . . 5 . . 1 Engine 15 | 1 . 2 4 1 1 3 . . . 2 1 . . . . . . . . . . Core 10 | . . 3 . . 1 2 . 1 . . 2 . . 1 . . . . . . . Reactor 9 | . . . . . . . . . . . . 1 . 1 1 . . 5 . . 1 Propulsion 56 | 2 1 4 11 4 1 6 1 5 2 2 1 . . 9 1 . 6 . . . . Treads 7 | . . . . . . . . 1 . . . . . . . . 6 . . . . Leg 29 | . . . 3 . . 6 1 4 2 2 1 . . 9 1 . . . . . . Wheel 19 | 2 1 4 8 3 1 . . . . . . . . . . . . . . . . Hover . | . . . . . . . . . . . . . . . . . . . . . . Flight 1 | . . . . 1 . . . . . . . . . . . . . . . . . Utility 135 | 1 4 4 7 3 5 8 5 10 2 12 5 8 . 11 8 8 9 12 3 6 4 Device 18 | . 2 1 2 1 1 2 . . . 1 . 2 . . 1 1 . 3 1 . . Storage 5 | 1 1 . . . . . . . . . . . . 1 1 1 . . . . . Processor 14 | . 1 2 1 . 1 1 . . . . 1 . . 1 1 . 1 4 . . . Hackware 79 | . . . . 1 1 . 5 10 2 10 4 5 . 9 4 5 8 4 2 5 4 Protection 19 | . . 1 4 1 2 5 . . . 1 . 1 . . 1 1 . 1 . 1 . Artifact . | . . . . . . . . . . . . . . . . . . . . . . Weapon 60 | 2 . 8 10 3 6 5 . 2 1 5 2 2 . 1 3 1 2 . 1 6 . Energy Gun 14 | 1 . 3 3 . 2 2 . . 1 1 . . . . 1 . . . . . . Energy Cannon 7 | . . 2 2 1 2 . . . . . . . . . . . . . . . . Ballistic Gun 6 | 1 . 2 2 . 1 . . . . . . . . . . . . . . . . Ballistic Cannon 18 | . . . 2 . . 2 . . . 3 1 2 . 1 1 . 1 . . 5 . Launcher 7 | . . 1 1 2 1 . . . . . . . . . . 1 1 . . . . Special Weapon 8 | . . . . . . 1 . 2 . 1 1 . . . 1 . . . 1 1 . Impact Weapon . | . . . . . . . . . . . . . . . . . . . . . . Slashing Weapon . | . . . . . . . . . . . . . . . . . . . . . . Piercing Weapon . | . . . . . . . . . . . . . . . . . . . . . . Special Melee Weapon . | . . . . . . . . . . . . . . . . . . . . . . Unidentified Prototypes 14 | . . 2 2 2 1 . . . 1 . . . . . 1 . 2 3 . . . Corrupted Parts 3 | . . . . . 1 . . 2 . . . . . . . . . . . . . System Corruption 28 | . . . . . 3 . . 25 . . . . . . . . . . . . . Parts Lost 73 | . 1 9 12 5 . 22 . 5 . 7 1 . . 1 1 2 1 4 . 1 1 Power 6 | . . 2 . 1 . 2 . . . 1 . . . . . . . . . . . Propulsion 24 | . . 4 5 2 . 6 . 3 . 3 . . . . . . . . . 1 . Utility 28 | . 1 1 3 2 . 9 . 1 . 1 . . . 1 1 2 1 4 . . 1 Weapon 15 | . . 2 4 . . 5 . 1 . 2 1 . . . . . . . . . . Highest Loss Streak 9 | . 1 3 5 5 . 9 . 2 . 3 1 . . 1 1 2 1 2 . 1 1 To Critical Strikes . | . . . . . . . . . . . . . . . . . . . . . . Average Backups 21 | . 6 15 19 20 20 23 23 24 23 23 23 23 24 24 24 23 20 21 22 22 23 Power 2 | . 1 4 4 3 3 1 1 2 2 . . 1 1 1 2 2 2 2 1 1 . Propulsion 1 | . 3 4 5 5 3 . . . . 1 . 1 . 1 2 2 . . . . . Utility 12 | . . 2 2 3 4 14 17 15 16 16 19 16 18 16 15 15 12 13 18 16 16 Weapon 3 | . . 3 5 5 6 4 3 3 3 3 1 3 4 3 2 2 4 4 1 3 3 Tool/Special . | . . . . . . . . . . . . . . . . . . . . . . Unused Backups 48 | . . 1 2 1 1 1 . 3 2 8 . 3 . 4 2 . . 6 . . 14 Power 9 | . . 1 . . . . . . 2 . . . . . 2 . . 1 . . 3 Propulsion 2 | . . . 1 . . . . . . . . . . 1 . . . . . . . Utility 29 | . . . 1 . . 1 . 1 . 5 . 3 . 3 . . . 4 . . 11 Weapon 5 | . . . . 1 1 . . . . 2 . . . . . . . 1 . . . Tool/Special 3 | . . . . . . . . 2 . 1 . . . . . . . . . . . Average Slot Usage (%) 90 | . 96 96 86 88 83 83 98 96 96 95 98 98 94 96 92 94 84 81 81 82 76 Engine 2 | . 14 5 8 9 6 1 . . . 1 . . . . . . . . . . . Core 3 | . . 5 . . . 4 7 6 6 4 10 9 5 4 4 4 4 1 . . . Reactor 2 | . . . . . . . . . . . . . 5 5 4 4 4 6 8 8 8 Treads 2 | . . . . . . . . . . . . . . . . . 11 13 12 10 8 Leg 14 | . . . 3 2 . 21 30 28 26 25 23 23 26 26 23 23 6 . . . . Wheel 4 | . 28 31 15 15 14 2 . . . . . . . . . . . . . . . Device 4 | . 14 4 15 1 6 2 . . . 1 4 5 5 5 3 2 1 7 8 7 1 Storage 6 | . 8 11 9 9 7 7 7 7 6 6 5 5 5 5 4 7 8 8 8 5 4 Processor 5 | . 1 12 9 18 10 12 13 . . . . . . 2 4 1 . 4 8 8 8 Hackware 21 | . . . . 8 7 4 9 35 43 38 40 38 31 32 35 33 34 26 21 26 32 Protection 4 | . . 3 6 8 11 8 12 . . 2 . . 5 3 . 4 4 4 4 4 3 Energy Gun 1 | . 14 10 2 . . 1 . . 4 2 . . . . . . . . . . . Energy Cannon 2 | . . 4 . 8 11 2 6 7 2 . . . . . . . . . . . . Ballistic Gun 1 | . 14 6 2 . . 1 . . . . . . . . . . . . . . . Ballistic Cannon 5 | . . . 10 3 . 7 1 . 1 5 5 5 5 5 5 5 5 6 8 9 9 Special Weapon 2 | . . . . . . . 5 6 4 3 4 4 5 4 2 2 2 1 3 1 2 Peak Build Rating 179 | 6 8 21 42 46 52 59 54 62 73 83 84 94 94 109 125 125 138 161 174 179 165 Average Rating 81 | 4 7 15 34 40 48 47 50 54 67 70 79 84 94 102 114 121 128 149 168 171 149 On Entrance 77 | . 6 8 19 42 37 51 47 52 62 73 68 80 91 94 105 124 116 138 155 174 165 Naked Turns . | . . . . . . . . . . . . . . . . . . . . . . Heaviest Build 192 | 12 88 95 112 111 115 122 119 114 100 128 128 145 145 164 174 183 178 179 192 192 180 Greatest Support 235 | 20 26 36 60 38 56 70 57 79 79 73 64 64 79 101 109 109 235 235 235 235 160 Greatest Overweight (x) 9 | . 4 3 9 3 2 3 2 2 1 3 1 2 1 1 1 1 2 . . 1 1 Average Overweight (x) 1 | . 1 2 2 2 1 2 1 1 1 1 1 1 1 1 1 1 . . . . . Largest Inventory Capacity 25 | 8 25 25 25 25 25 25 25 25 25 25 25 25 25 25 25 25 25 25 25 25 25 Average Capacity 24 | 6 14 25 25 25 25 25 25 25 25 25 25 25 25 25 25 25 25 25 25 25 25 Most Carried 25 | 1 14 20 25 25 25 25 25 25 25 25 25 25 24 25 25 25 25 25 24 25 25 Average Carried 22 | . 6 15 21 21 20 23 23 24 23 23 23 23 24 24 24 23 20 21 21 22 23 Final Capacity 25 | 8 25 25 25 25 25 25 25 25 25 25 25 25 25 25 25 25 25 25 25 25 25 Final Carried 25 | 1 14 20 25 18 25 25 23 23 25 25 22 25 24 25 21 25 19 25 21 25 21 Class Distribution -------------------- 29% | Botlord-Mutant 26% | Mutant 25% | Bothacker-Mutant 6% | Botlord-Tank 4% | Scavenger-Mutant 3% | Hacker-Mutant Dominant Class ---------------- Mutant | -10/Materials Mutant | -9/Materials Mutant | -8/Materials Mutant | -8/Storage Mutant | -7/Factory Mutant | -7/Garrison Bothacker-Mutant | -7/Factory Bothacker-Mutant | -7/Garrison Bothacker-Mutant | -6/Factory Bothacker-Mutant | -6/Garrison Bothacker-Mutant | -5/Factory Bothacker-Mutant | -5/Garrison Botlord-Mutant | -4/Factory Botlord-Mutant | -4/Garrison Botlord-Mutant | -3/Research Botlord-Mutant | -3/Garrison Botlord-Mutant | -2/Research Botlord-Mutant | -2/Garrison Botlord-Tank | -1/Access Botlord-Tank | -1/Garrison Botlord-Tank | -1/Access Resources | -11 -10 -9 -8 -8 -7 -7 -7 -7 -6 -6 -5 -5 -4 -4 -3 -3 -2 -2 -1 -1 -1 ----------- Run | Yrd Mat Mat Mat Sto Fac Gar Fac Gar Fac Gar Fac Gar Fac Gar Res Gar Res Gar Acc Gar Acc Matter Collected 12073 | 84 266 251 770 270 479 996 206 632 20 1014 319 465 . 876 587 567 687 1092 496 1603 393 Remotely . | . . . . . . . . . . . . . . . . . . . . . . Salvage Created 10231 | . 600 980 1948 538 643 951 22 99 . 279 206 30 . 82 156 1496 160 827 240 572 402 Parts 539 | . 32 62 122 43 39 55 1 5 . 20 5 . . 1 11 52 14 25 5 31 16 Haulers Intercepted 4 | . . 1 2 1 . . . . . . . . . . . . . . . . . Recyclers Shooed 7 | . 1 2 1 1 1 . . . . . . . . . . . . . . . 1 Parts Field Recycled . | . . . . . . . . . . . . . . . . . . . . . . Retrieved Matter . | . . . . . . . . . . . . . . . . . . . . . . Parts Self-Destructed . | . . . . . . . . . . . . . . . . . . . . . . Prevented . | . . . . . . . . . . . . . . . . . . . . . . Kills | -11 -10 -9 -8 -8 -7 -7 -7 -7 -6 -6 -5 -5 -4 -4 -3 -3 -2 -2 -1 -1 -1 ------- Run | Yrd Mat Mat Mat Sto Fac Gar Fac Gar Fac Gar Fac Gar Fac Gar Res Gar Res Gar Acc Gar Acc Combat Hostiles Destroyed 216 | . 12 23 37 14 15 33 2 3 . 6 5 1 . 3 3 20 4 16 3 14 2 Guns 49 | . 12 15 13 . . 8 . . . 1 . . . . . . . . . . . Cannons 82 | . . 4 8 5 2 10 . 3 . 5 5 1 . 3 3 4 . 12 3 12 2 AOE 72 | . . 3 16 9 11 15 2 . . . . . . . . 7 4 4 . 1 . Classes Destroyed 20 | . 5 4 3 1 2 3 . . . 1 . . . . . . . 1 . . . Worker 10 | . 3 . 4 3 . . . . . . . . . . . . . . . . . Builder 12 | . . . 10 1 . . . . . . . . . . . . 1 . . . . Tunneler 3 | . . 1 . 1 1 . . . . . . . . . . . . . . . . Hauler 4 | . . 1 2 1 . . . . . . . . . . . . . . . . . Recycler 8 | . 1 . 3 1 1 . . . . . . . . . . . . . . . 2 Operator 5 | . . 1 1 1 1 . . . . . . . . . 1 . . . . . . Watcher 10 | . 1 5 . . 1 1 . . . . . . . . . . . . 1 . 1 Swarmer 43 | . 3 7 4 3 3 4 . . . . . . . . . 5 4 5 . 5 . Cutter 3 | . . . . . . 3 . . . . . . . . . . . . . . . Grunt 86 | . 9 11 24 6 6 10 2 . . . 2 . . . 1 10 . 5 . . . Brawler 2 | . . . . 1 1 . . . . . . . . . . . . . . . . Duelist 3 | . . . 2 . . . . . . . . . . . . . . . . 1 . Protector 1 | . . . . . . 1 . . . . . . . . . . . . . . . Sentry 29 | . . 5 3 4 1 8 . . . . . . . . . 4 . 3 . 1 . Demolisher 1 | . . . . . . 1 . . . . . . . . . . . . . . . Specialist 9 | . . . 4 . . 3 . . . . . . . 2 . . . . . . . Hunter 13 | . . . . . 2 3 . 1 . . . . . . 1 . . 2 3 1 . Programmer 18 | . . . . . 2 . . 2 . 3 2 . . 1 1 . . 1 . 4 2 Behemoth 9 | . . . . . . . . . . 4 1 1 . . . 1 . . . 2 . Executioner 1 | . . . . . . . . . . . . . . . . . . 1 . . . Best Kill Streak 13 | . 9 7 13 13 4 7 2 1 . 3 2 1 . 2 2 11 3 4 2 3 2 Combat Bots Only 11 | . 4 4 7 5 4 7 2 1 . 3 2 1 . 2 2 11 3 4 2 3 1 Max Kills in Single Turn 4 | . 1 2 4 3 3 4 1 1 . 2 1 1 . 1 1 4 3 2 1 1 1 Gunslinging . | . . . . . . . . . . . . . . . . . . . . . . Exploded 4 | . . 2 3 3 3 4 1 . . . . . . . . 3 3 2 . 1 . Melee . | . . . . . . . . . . . . . . . . . . . . . . Uniques/NPCs Destroyed . | . . . . . . . . . . . . . . . . . . . . . . Combat | -11 -10 -9 -8 -8 -7 -7 -7 -7 -6 -6 -5 -5 -4 -4 -3 -3 -2 -2 -1 -1 -1 -------- Run | Yrd Mat Mat Mat Sto Fac Gar Fac Gar Fac Gar Fac Gar Fac Gar Res Gar Res Gar Acc Gar Acc Hostile Shots Fired 1960 | . 48 112 150 44 43 571 23 91 . 171 18 6 . 190 12 67 37 120 26 223 8 Missed 684 | . 21 19 38 10 17 209 12 38 . 54 4 3 . 97 4 20 12 49 10 66 1 Hits 1276 | . 27 93 112 34 26 362 11 53 . 117 14 3 . 93 8 47 25 71 16 157 7 Melee 3 | . . . . . . 1 . . . . . . . . . 1 . 1 . . . Projectile 1273 | . 27 93 112 34 26 361 11 53 . 117 14 3 . 93 8 46 25 70 16 157 7 AOE 5 | . . . . . . 4 . . . . . . . . . 1 . . . . . Critical Strikes 26 | . . 3 3 3 2 2 . . . 3 . . . . . 2 . 5 . 3 . Actively Blocked 3 | . . . . . . . . . . . . . . . . . . . . 3 . Part Disruptions 1 | . . . . . . . . . . . . . . . . . . 1 . . . Damage Taken 18428 | . 307 1218 2013 739 390 4160 151 580 . 2343 305 116 . 723 200 1034 481 970 210 2317 171 Core 2340 | . 148 327 247 239 44 418 16 85 . 321 91 18 . 76 27 38 . 65 24 156 . Absorbed by Shields 2592 | . . . . . . 200 . . . 18 48 68 . 377 168 224 144 608 179 558 . Reduced by Siege Mode 52 | . . . . . . . . . . . . . . . . . . . . 52 . Core Remaining (%) 64 | 100 40 18 . 11 . . . 19 . 62 . 89 . 93 . 95 . 95 . . 88 Volleys Fired 966 | . 45 90 101 24 27 92 8 75 . 90 23 33 . 57 32 42 26 81 20 76 24 Largest 3 | . 2 2 2 2 2 2 1 2 . 2 2 2 . 2 2 2 2 2 3 3 3 Hottest 196 | . 60 112 106 129 153 140 65 112 . 150 110 110 . 108 108 134 108 108 162 174 196 Shots Fired 1470 | . 90 172 175 37 45 156 9 83 . 114 25 37 . 72 43 53 32 117 34 138 38 Gun 439 | . 90 151 107 . 3 52 . . . 36 . . . . . . . . . . . Cannon 717 | . . 17 52 27 33 85 3 49 . 39 14 23 . 40 30 30 13 102 25 111 24 Launcher 99 | . . 4 16 10 9 19 3 . . 5 . . . . . 13 3 6 . 7 4 Special 215 | . . . . . . . 3 34 . 34 11 14 . 32 13 10 16 9 9 20 10 Kinetic 747 | . 45 71 83 12 2 78 . 5 . 39 14 23 . 40 30 30 13 102 25 111 24 Thermal 282 | . 45 78 9 15 19 33 3 44 . 36 . . . . . . . . . . . Explosive 66 | . . 4 16 10 9 19 3 . . 5 . . . . . . . . . . . Electromagnetic 160 | . . 19 67 . 15 26 . . . . . . . . . 13 3 6 . 7 4 Robot Hit Streak 23 | . 10 19 23 12 10 13 8 12 . 12 5 10 . 12 8 16 10 12 6 13 7 Robot Miss Streak 7 | . 2 4 4 3 3 6 1 2 . 2 2 1 . 4 6 7 6 3 3 6 1 Penetration Max 1 | . . . 1 . . . . . . . . . . . . . . . . . . Secondary Targets 5 | . . 1 3 . . 1 . . . . . . . . . . . . . . . Max Gunslinging Chain 1 | . . 1 1 . . 1 . . . . . . . . . . . . . . . Shots Hit Robots 885 | . 60 113 120 23 32 108 7 39 . 63 14 21 . 43 22 30 17 59 23 71 20 Core Hits 566 | . 31 54 82 30 34 114 9 4 . 17 4 2 . 5 5 81 18 36 9 25 6 Critical Kills 3 | . . 1 . . 2 . . . . . . . . . . . . . . . . Critical Parts Destroyed 2 | . . . 2 . . . . . . . . . . . . . . . . . . Critical Strikes 40 | . . 5 7 . 2 1 . . . 2 1 . . 3 2 1 1 7 3 4 1 Burn 7 | . . 3 2 . . . . . . 2 . . . . . . . . . . . Meltdown 2 | . . . . . 2 . . . . . . . . . . . . . . . . Destroy 4 | . . 1 3 . . . . . . . . . . . . . . . . . . Blast 24 | . . . . . . 1 . . . . 1 . . 3 2 1 1 7 3 4 1 Corrupt 3 | . . 1 2 . . . . . . . . . . . . . . . . . . Melee Attacks . | . . . . . . . . . . . . . . . . . . . . . . Impact . | . . . . . . . . . . . . . . . . . . . . . . Slashing . | . . . . . . . . . . . . . . . . . . . . . . Piercing . | . . . . . . . . . . . . . . . . . . . . . . Sneak Attacks . | . . . . . . . . . . . . . . . . . . . . . . Combat Hostiles . | . . . . . . . . . . . . . . . . . . . . . . Follow-up Attacks . | . . . . . . . . . . . . . . . . . . . . . . Damage Inflicted 28377 | . 583 1842 4492 1373 1708 4238 728 406 . 1559 368 280 . 766 651 3099 583 2253 602 2428 418 Guns 4680 | . 583 1112 1519 . 74 878 . . . 514 . . . . . . . . . . . Cannons 12330 | . . 326 690 474 685 1395 48 406 . 586 368 280 . 766 651 464 123 1935 602 2113 418 Explosions 11326 | . . 404 2283 899 949 1965 680 . . 457 . . . . . 2635 421 318 . 315 . Melee . | . . . . . . . . . . . . . . . . . . . . . . Ramming 41 | . . . . . . . . . . 2 . . . . . . 39 . . . . Kinetic 11677 | . 237 374 1087 168 39 1417 . 49 . 586 368 280 . 766 651 464 123 1935 602 2113 418 Thermal 4285 | . 346 760 408 306 527 547 48 357 . 514 . . . . . 386 . . . 86 . Explosive 7074 | . . 352 1950 899 848 1888 680 . . 457 . . . . . . . . . . . Electromagnetic 5300 | . . 356 1047 . 294 386 . . . . . . . . . 2249 421 318 . 229 . Impact . | . . . . . . . . . . . . . . . . . . . . . . Slashing . | . . . . . . . . . . . . . . . . . . . . . . Piercing . | . . . . . . . . . . . . . . . . . . . . . . Highest Corruption 33 | . . 1 . . 4 6 6 33 . 2 . . . . . . . 2 . 1 2 Average Corruption 5 | . . 1 . . 1 5 6 11 . 1 . . . . . . . 1 . 1 1 Corruption Purged . | . . . . . . . . . . . . . . . . . . . . . . Corruption Blocked . | . . . . . . . . . . . . . . . . . . . . . . Effects 166 | . . 8 . . . 80 17 38 . 12 . . . . . . . 3 . 3 5 Message Errors 47 | . . 3 . . . 22 3 12 . 4 . . . . . . . . . 2 1 Matter Fused 35 | . . 1 . . . 18 3 9 . 2 . . . . . . . 1 . 1 . Heat Flow Errors 23 | . . 3 . . . 12 2 4 . 1 . . . . . . . 1 . . . Energy Discharges 19 | . . . . . . 10 3 3 . 1 . . . . . . . . . . 2 Parts Fused 2 | . . . . . . 1 1 . . . . . . . . . . . . . . Data Loss (minor) 20 | . . . . . . 9 4 3 . 3 . . . . . . . . . . 1 Data Loss (major) 9 | . . . . . . 4 . 3 . . . . . . . . . 1 . . 1 Misfires 9 | . . . . . . 4 1 3 . 1 . . . . . . . . . . . Alerts 1 | . . . . . . . . 1 . . . . . . . . . . . . . Weapon Failures 1 | . . 1 . . . . . . . . . . . . . . . . . . . Overload Shots . | . . . . . . . . . . . . . . . . . . . . . . Overflow Damage 546 | . . 36 183 15 14 121 12 . . . 3 . . . 47 51 . . . 55 9 Projectiles 141 | . . . . . . 27 . . . . 3 . . . 47 . . . . 55 9 Explosions 405 | . . 36 183 15 14 94 12 . . . . . . . . 51 . . . . . Melee . | . . . . . . . . . . . . . . . . . . . . . . Knockbacks 57 | . . . 4 3 . 12 . . . 1 1 . . 5 6 . 2 13 5 4 1 Impact 1 | . . . . . . . . . . . . . . . . . 1 . . . . Kinetic 55 | . . . 4 2 . 12 . . . 1 1 . . 5 6 . 1 13 5 4 1 Secondary 1 | . . . . 1 . . . . . . . . . . . . . . . . . Self-Inflicted Damage 1156 | . . 63 415 74 28 355 . . . 26 . . . . . 121 23 28 . 23 . Shots 49 | . . 2 12 3 1 9 . . . 1 . . . . . 13 2 3 . 3 . Rammed 1 | . . . . . . . . . . . . . . . . . 1 . . . . Targets Rammed 4 | . . . . . . . . . . 1 . . . . . . 3 . . . . Kicked 2 | . . . . . . . . . . 1 . . . . . . 1 . . . . Crushed 1 | . . . . . . . . . . . . . . . . . 1 . . . . Highest Temperature 689 | . 78 393 196 689 111 381 158 240 . 320 72 144 . 240 132 348 126 338 84 340 81 Average Temperature 82 | . 29 102 53 237 32 97 47 39 . 107 15 33 . 76 33 85 40 74 37 92 36 Received Heat Transfer 3793 | . 144 474 621 270 63 933 48 87 . 752 14 18 . 10 32 109 18 75 16 82 27 Effects 27 | . . 2 . 19 . 1 . . . 2 . . . . . 1 . 2 . . . Shutdowns 4 | . . 2 . 1 . 1 . . . . . . . . . . . . . . . Energy Bleed 7 | . . . . 4 . . . . . 2 . . . . . . . 1 . . . Interference 5 | . . . . 5 . . . . . . . . . . . . . . . . . Short Circuit 2 | . . . . 1 . . . . . . . . . . . 1 . . . . . Damage (minor) 3 | . . . . 2 . . . . . . . . . . . . . 1 . . . Damage (major) 4 | . . . . 4 . . . . . . . . . . . . . . . . . Damage (core) 2 | . . . . 2 . . . . . . . . . . . . . . . . . Siege Activations 1 | . . . . . . . . . . . . . . . . . . . . 1 . Total Turns 17 | . . . . . . . . . . . . . . . . . . . . 17 . Longest Duration 17 | . . . . . . . . . . . . . . . . . . . . 17 . Martial Activations . | . . . . . . . . . . . . . . . . . . . . . . Shielding Activations . | . . . . . . . . . . . . . . . . . . . . . . Robots Disrupted 2 | . . . 1 . . . . . . . . . . . . 1 . . . . . Combat Hostiles 2 | . . . 1 . . . . . . . . . . . . 1 . . . . . Robots Corrupted 12 | . . 1 1 . . . . . . . . . . . . 9 . . . 1 . Combat Hostiles 11 | . . 1 . . . . . . . . . . . . . 9 . . . 1 . Parts Fried 35 | . . 1 5 . 1 2 . . . . . . . . . 21 2 2 . 1 . Impact Corruptions . | . . . . . . . . . . . . . . . . . . . . . . Robots Melted 2 | . . . . . 2 . . . . . . . . . . . . . . . . Combat Hostiles 2 | . . . . . 2 . . . . . . . . . . . . . . . . Parts Melted 7 | . . 1 . . 3 . . 1 . . . . . . . . . . . 2 . Heat Transferred 7209 | . 775 1853 583 407 643 680 74 462 . 1157 . . . . . 550 . . . 25 . Parts Sabotaged . | . . . . . . . . . . . . . . . . . . . . . . Parts Stolen . | . . . . . . . . . . . . . . . . . . . . . . Parts Stripped . | . . . . . . . . . . . . . . . . . . . . . . Power Chain Reactions 15 | . . 1 1 . 2 2 . . . . . . . . . 7 . . . 1 1 Alert | -11 -10 -9 -8 -8 -7 -7 -7 -7 -6 -6 -5 -5 -4 -4 -3 -3 -2 -2 -1 -1 -1 ------- Run | Yrd Mat Mat Mat Sto Fac Gar Fac Gar Fac Gar Fac Gar Fac Gar Res Gar Res Gar Acc Gar Acc Maximum Alert Level 5 | . 1 . 3 2 1 5 4 4 2 3 1 2 1 3 2 4 3 5 3 4 3 Low Security (%) 10 | 100 84 100 12 . . . . . . . 69 2 . . . . . . . . . Level 1 23 | . 15 . 18 53 100 2 . . 55 48 30 33 100 65 . . 10 . . . 94 Level 2 24 | . . . 65 46 . 15 . . 44 41 . 63 . 20 100 19 66 6 . . 1 Level 3 21 | . . . 3 . . 22 93 88 . 9 . . . 13 . 20 22 55 100 15 4 Level 4 15 | . . . . . . 34 6 11 . . . . . . . 60 . 30 . 84 . Level 5 4 | . . . . . . 25 . . . . . . . . . . . 7 . . . High Security . | . . . . . . . . . . . . . . . . . . . . . . Max Security . | . . . . . . . . . . . . . . . . . . . . . . Peak Influence 2119 | . 218 167 717 616 399 2119 1112 1167 585 713 373 604 317 847 573 1457 805 1690 1013 1510 905 Initial 1112 | . . 79 67 300 276 260 1112 721 585 231 373 182 317 207 476 422 805 462 1013 731 905 Average 685 | . 119 101 412 425 302 1218 980 885 423 466 163 458 306 413 491 1044 598 1109 957 1332 327 Influence Increases 15437 | . 398 733 1482 556 554 2159 224 826 5 892 527 522 . 950 617 1270 703 1468 231 1069 251 Destroy 0b10 Robot/C 6940 | . 240 460 740 280 300 740 140 360 . 320 180 240 . 400 260 640 340 560 120 520 100 Destroy 0b10 Robot/NC 340 | . 25 40 100 40 20 15 10 5 5 . 35 5 . . 10 . 10 . 5 . 15 Destroy Leader 944 | . 52 112 154 72 82 40 20 . . 10 48 20 . 30 50 40 40 30 32 90 22 Allied During Kill 1577 | . . . . . . 30 29 54 . 40 68 98 . 202 213 127 253 219 56 143 45 Successful Hack 110 | . 21 16 5 . 8 24 . 14 . . 6 . . . . 8 . 8 . . . Select Force Hacks 120 | . 30 30 30 . 30 . . . . . . . . . . . . . . . . Disable Machine 495 | . . 30 165 75 30 45 . . . . 60 . . . . . 15 15 . 15 45 Anti-Garrison Action 2700 | . . . . . . 1050 . 250 . 400 . 100 . 250 . 250 . 350 . 50 . Destroy Structure 1731 | . . 30 198 89 69 200 25 68 . 122 130 59 . 68 84 130 30 151 18 236 24 Lose Combat Pursuer 480 | . 30 15 90 . 15 15 . 75 . . . . . . . 75 15 135 . 15 . Influence Decreases 15107 | . 208 762 932 659 790 412 1313 739 792 509 979 179 307 400 901 401 1519 394 1007 473 1431 Entered New Map 6561 | . . 111 94 411 332 112 1007 309 532 99 340 79 287 90 371 141 627 154 677 183 605 Time Decay 3831 | . 198 481 568 198 458 . 286 . 110 . 334 . 20 . 380 . 342 . 170 . 286 Lost Part 730 | . 10 90 120 50 . 220 . 50 . 70 10 . . 10 10 20 10 40 . 10 10 Lost Ally 2505 | . . . . . . 80 20 380 . 340 145 100 . 300 140 240 90 200 160 280 30 Purge Threat 1480 | . . 80 150 . . . . . 150 . 150 . . . . . 450 . . . 500 Squads Dispatched 44 | . 2 2 16 3 5 . 4 . . . 3 . . . 3 . 3 . 1 . 2 Investigation 9 | . 2 1 5 . 1 . . . . . . . . . . . . . . . . Extermination 8 | . . . . . 2 . 1 . . . 1 . . . 2 . 1 . . . 1 Reinforcement 17 | . . 1 6 1 2 . 1 . . . 2 . . . 1 . 2 . . . 1 Assault 6 | . . . 2 2 . . 1 . . . . . . . . . . . 1 . . Garrison 4 | . . . 3 . . . 1 . . . . . . . . . . . . . . Intercept . | . . . . . . . . . . . . . . . . . . . . . . Searches Triggered . | . . . . . . . . . . . . . . . . . . . . . . Construction Impeded 5 | . . . 2 . 1 . . . . . 1 . . . . . 1 . . . . Haulers Reinforced 1 | . . . . . . . . . . . . . . . . . . . . . 1 Active Scanning Responses . | . . . . . . . . . . . . . . . . . . . . . . Cargo Convoy Interrupts . | . . . . . . . . . . . . . . . . . . . . . . Stealth | -11 -10 -9 -8 -8 -7 -7 -7 -7 -6 -6 -5 -5 -4 -4 -3 -3 -2 -2 -1 -1 -1 --------- Run | Yrd Mat Mat Mat Sto Fac Gar Fac Gar Fac Gar Fac Gar Fac Gar Res Gar Res Gar Acc Gar Acc Distress Signals 21 | . 1 2 3 1 . 1 . 1 . . 3 1 . . 1 . 1 . 3 2 1 Communications Jammed 4 | . . . . . . . . . . . . . . . . . . . . . 4 Distress Signals 4 | . . . . . . . . . . . . . . . . . . . . . 4 Times Spotted 520 | . 16 32 49 15 19 39 12 33 1 41 17 20 . 33 17 41 24 42 15 43 11 Peak Tracking Total 17 | . 5 7 8 5 4 7 5 6 1 8 5 5 . 8 3 17 6 6 7 10 2 Tactical Retreats 19 | . 1 1 2 . 1 1 . 3 . . . . . . . 3 1 5 . 1 . Traps | -11 -10 -9 -8 -8 -7 -7 -7 -7 -6 -6 -5 -5 -4 -4 -3 -3 -2 -2 -1 -1 -1 ------- Run | Yrd Mat Mat Mat Sto Fac Gar Fac Gar Fac Gar Fac Gar Fac Gar Res Gar Res Gar Acc Gar Acc Traps Triggered 45 | . 1 1 2 . 2 9 1 6 . 3 1 3 . 3 . 7 2 1 . 3 . Indirectly 2 | . . . . . . . . . . . . . . . . 2 . . . . . Trap Hack Attempts . | . . . . . . . . . . . . . . . . . . . . . . Triggered . | . . . . . . . . . . . . . . . . . . . . . . Disarmed . | . . . . . . . . . . . . . . . . . . . . . . Reprogrammed 6 | . . . . . 6 . . . . . . . . . . . . . . . . Reused . | . . . . . . . . . . . . . . . . . . . . . . Traps Extracted . | . . . . . . . . . . . . . . . . . . . . . . Installed . | . . . . . . . . . . . . . . . . . . . . . . Triggered . | . . . . . . . . . . . . . . . . . . . . . . Objects Rigged 4 | . 4 . . . . . . . . . . . . . . . . . . . . Machines | -11 -10 -9 -8 -8 -7 -7 -7 -7 -6 -6 -5 -5 -4 -4 -3 -3 -2 -2 -1 -1 -1 ---------- Run | Yrd Mat Mat Mat Sto Fac Gar Fac Gar Fac Gar Fac Gar Fac Gar Res Gar Res Gar Acc Gar Acc Machines Disabled 61 | . . 2 11 5 2 6 . 3 . 4 4 2 . 3 . 3 1 10 . 2 3 Max in Single Turn 3 | . . 1 3 1 1 1 . 1 . 1 1 1 . 1 . 1 . 1 . 1 1 Garrison Relay 25 | . . . . . . 4 . 3 . 4 . 2 . 3 . 3 . 5 . 1 . Machines Repaired . | . . . . . . . . . . . . . . . . . . . . . . Machines Dismantled . | . . . . . . . . . . . . . . . . . . . . . . Machines Sabotaged . | . . . . . . . . . . . . . . . . . . . . . . Overloaded Fab Kills . | . . . . . . . . . . . . . . . . . . . . . . Hacking | -11 -10 -9 -8 -8 -7 -7 -7 -7 -6 -6 -5 -5 -4 -4 -3 -3 -2 -2 -1 -1 -1 --------- Run | Yrd Mat Mat Mat Sto Fac Gar Fac Gar Fac Gar Fac Gar Fac Gar Res Gar Res Gar Acc Gar Acc Machines Accessed 61 | . 5 6 6 5 6 2 2 3 2 1 4 2 1 1 3 2 4 2 2 2 . Terminals 49 | . 4 5 5 5 4 2 1 3 1 1 3 2 . 1 2 2 3 2 1 2 . Fabricators . | . . . . . . . . . . . . . . . . . . . . . . Repair Stations . | . . . . . . . . . . . . . . . . . . . . . . Recycling Units 4 | . 1 1 1 . 1 . . . . . . . . . . . . . . . . Scanalyzers . | . . . . . . . . . . . . . . . . . . . . . . Garrison Access 8 | . . . . . 1 . 1 . 1 . 1 . 1 . 1 . 1 . 1 . . Total Hacks 124 | . 8 15 14 8 14 4 2 4 3 1 17 3 1 2 4 4 12 3 2 3 . Successful 52 | . 4 6 3 4 7 2 1 1 2 1 7 1 1 . 1 2 6 2 1 . . Failed 72 | . 4 9 11 4 7 2 1 3 1 . 10 2 . 2 3 2 6 1 1 3 . Catastrophic 8 | . 1 1 1 . . . 1 . . . . . . . 1 . 1 . 1 1 . Database Lockouts . | . . . . . . . . . . . . . . . . . . . . . . Manual 65 | . 6 7 14 2 7 . 1 . . . 15 . . . 3 . 9 . 1 . . Terminals 109 | . 7 14 12 8 10 4 1 4 2 1 16 3 . 2 3 4 11 3 1 3 . Fabricators . | . . . . . . . . . . . . . . . . . . . . . . Repair Stations . | . . . . . . . . . . . . . . . . . . . . . . Recycling Units 6 | . 1 1 2 . 2 . . . . . . . . . . . . . . . . Scanalyzers . | . . . . . . . . . . . . . . . . . . . . . . Garrison Access 9 | . . . . . 2 . 1 . 1 . 1 . 1 . 1 . 1 . 1 . . Terminal Hacks 27 | . 1 4 1 3 2 2 . 1 1 1 3 1 . . . 2 3 2 . . . Record 1 | . . . . . . . . . . . 1 . . . . . . . . . . Robot Analysis 1 | . . . . . . . . . . . 1 . . . . . . . . . . Prototype ID Bank 1 | . . 1 . . . . . . . . . . . . . . . . . . . Open Door 4 | . . . . 3 . . . . . . . . . . . 1 . . . . . Emergency Access Points 5 | . . . . . . 1 . 1 . 1 . . . . . 1 . 1 . . . Unreport Threat 8 | . . 2 1 . . . . . 1 . 1 . . . . . 3 . . . . Locate Traps 3 | . 1 1 . . 1 . . . . . . . . . . . . . . . . Reprogram Traps 1 | . . . . . 1 . . . . . . . . . . . . . . . . Garrison Registry 1 | . . . . . . . . . . . . 1 . . . . . . . . . Patrol Navigation 2 | . . . . . . 1 . . . . . . . . . . . 1 . . . Fabricator Hacks . | . . . . . . . . . . . . . . . . . . . . . . Repair Station Hacks . | . . . . . . . . . . . . . . . . . . . . . . Recycling Unit Hacks . | . . . . . . . . . . . . . . . . . . . . . . Scanalyzer . | . . . . . . . . . . . . . . . . . . . . . . Garrison Access Hacks 8 | . . . . . 1 . 1 . 1 . 1 . 1 . 1 . 1 . 1 . . Unlock Access 8 | . . . . . 1 . 1 . 1 . 1 . 1 . 1 . 1 . 1 . . Unauthorized Hacks 17 | . 3 2 2 1 4 . . . . . 3 . . . . . 2 . . . . Terminals 13 | . 2 1 1 1 3 . . . . . 3 . . . . . 2 . . . . Botnet 12 | . 1 1 1 1 3 . . . . . 3 . . . . . 2 . . . . Detonate 1 | . 1 . . . . . . . . . . . . . . . . . . . . Fabricators . | . . . . . . . . . . . . . . . . . . . . . . Repair Stations . | . . . . . . . . . . . . . . . . . . . . . . Recycling Units 4 | . 1 1 1 . 1 . . . . . . . . . . . . . . . . Tunnel 4 | . 1 1 1 . 1 . . . . . . . . . . . . . . . . Scanalyzers . | . . . . . . . . . . . . . . . . . . . . . . Garrison Access . | . . . . . . . . . . . . . . . . . . . . . . Data Cores Recovered 2 | . . . . 1 . . . . 1 . . . . . . . . . . . . Used 1 | . . . . . . . . . 1 . . . . . . . . . . . . Hacking Detections 47 | . 2 4 6 2 5 1 2 3 1 1 4 1 . 1 2 2 4 2 2 2 . Full Trace Events 1 | . . . 1 . . . . . . . . . . . . . . . . . . Feedback Events . | . . . . . . . . . . . . . . . . . . . . . . Feedback Blocked . | . . . . . . . . . . . . . . . . . . . . . . Robot Schematics Acquired . | . . . . . . . . . . . . . . . . . . . . . . Robots Built . | . . . . . . . . . . . . . . . . . . . . . . Authchips . | . . . . . . . . . . . . . . . . . . . . . . Time . | . . . . . . . . . . . . . . . . . . . . . . Total Robot Build Rating . | . . . . . . . . . . . . . . . . . . . . . . Part Schematics Acquired . | . . . . . . . . . . . . . . . . . . . . . . Parts Built . | . . . . . . . . . . . . . . . . . . . . . . Authchips . | . . . . . . . . . . . . . . . . . . . . . . Time . | . . . . . . . . . . . . . . . . . . . . . . Total Part Build Rating . | . . . . . . . . . . . . . . . . . . . . . . Parts Repaired . | . . . . . . . . . . . . . . . . . . . . . . Time . | . . . . . . . . . . . . . . . . . . . . . . Parts Recycled . | . . . . . . . . . . . . . . . . . . . . . . Recycled Matter . | . . . . . . . . . . . . . . . . . . . . . . Retrieved Matter . | . . . . . . . . . . . . . . . . . . . . . . Retrieved Components . | . . . . . . . . . . . . . . . . . . . . . . Parts Scanalyzed . | . . . . . . . . . . . . . . . . . . . . . . Part Schematics Acquired . | . . . . . . . . . . . . . . . . . . . . . . Parts Damaged . | . . . . . . . . . . . . . . . . . . . . . . Bothacking | -11 -10 -9 -8 -8 -7 -7 -7 -7 -6 -6 -5 -5 -4 -4 -3 -3 -2 -2 -1 -1 -1 ------------ Run | Yrd Mat Mat Mat Sto Fac Gar Fac Gar Fac Gar Fac Gar Fac Gar Res Gar Res Gar Acc Gar Acc Used RIF Installer 8 | . . . . . . 1 . 1 . 1 . 1 . 1 . 1 . 1 . 1 . Signal Jammer 1 | . . . . . . . . . . . . 1 . . . . . . . . . Zone Cloak 1 | . . . . . . . . . . 1 . . . . . . . . . . . Robot Detection 1 | . . . . . . . . . . . . . . . . . . 1 . . . Patrol Navigation 1 | . . . . . . . . 1 . . . . . . . . . . . . . Program Shield 1 | . . . . . . . . . . . . . . 1 . . . . . . . Autooverride 1 | . . . . . . . . . . . . . . . . . . . . 1 . Autoassimilate 1 | . . . . . . . . . . . . . . . . 1 . . . . . Robots Hacked 142 | . . . . . . . 3 19 . 24 7 10 . 18 7 7 12 11 7 13 4 Non-combat 4 | . . . . . . . . . . . 1 . . . . . 1 . . . 2 Combat 138 | . . . . . . . 3 19 . 24 6 10 . 18 7 7 11 11 7 13 2 Autoassimilated 6 | . . . . . . . . . . . . . . . . . 1 3 . 2 . Robot Hacks Applied 146 | . . . . . . . 3 19 . 25 7 11 . 18 7 7 11 8 7 14 9 find_chute 1 | . . . . . . . . . . . 1 . . . . . . . . . . purge_threat 5 | . . . . . . . . . . . . . . . . . . . . . 5 scatter_targeting 2 | . . . . . . . . . . 1 . . . . . 1 . . . . . disable_weapons 1 | . . . . . . . . . . . . . . . . . 1 . . . . reboot_system 6 | . . . . . . . . 3 . . . 1 . . 1 1 . . . . . overwrite_iff 38 | . . . . . . . . 3 . 7 1 2 . 6 2 1 . 3 2 11 . streamctrl_high 3 | . . . . . . . . . . 2 . . . . . . . 1 . . . formatsys_low 1 | . . . . . . . . . . . . . . . . . . . . . 1 formatsys_high 89 | . . . . . . . 3 13 . 15 5 8 . 12 4 4 10 4 5 3 3 Relay Couplers Released 103 | . . . . . . 18 . 14 . 17 . 8 . 12 . 12 . 19 . 3 . Machine Destruction 103 | . . . . . . 18 . 14 . 17 . 8 . 12 . 12 . 19 . 3 . Attached 73 | . . . . . . . 5 10 . 10 4 5 . 9 3 5 7 4 2 5 4 Fabnet Peak Effective % . | . . . . . . . . . . . . . . . . . . . . . . Robots Rewired 17 | . . . . . . 4 . 4 . . . . . . . 6 . 1 . 2 . Allies Hacked 2 | . . . . . . . . . . . . . . . 1 . . . . . 1 Hacks Repelled . | . . . . . . . . . . . . . . . . . . . . . . Allies | -11 -10 -9 -8 -8 -7 -7 -7 -7 -6 -6 -5 -5 -4 -4 -3 -3 -2 -2 -1 -1 -1 -------- Run | Yrd Mat Mat Mat Sto Fac Gar Fac Gar Fac Gar Fac Gar Fac Gar Res Gar Res Gar Acc Gar Acc Total Allies 154 | . . . . . . 4 3 21 . 25 6 9 . 20 6 11 11 12 7 15 4 Largest Group 12 | . . . . . . 4 3 5 1 5 6 7 6 8 8 6 7 12 5 4 5 Highest-Rated Group 661 | . . . . . . 64 83 194 12 253 330 416 367 465 459 329 451 661 233 392 268 Highest-Rated Ally 148 | . . . . . . 16 32 95 12 81 142 142 142 142 148 148 69 119 58 148 64 Total Orders 1 | . . . . . . 1 . . . . . . . . . . . . . . . EXPLORE 1 | . . . . . . 1 . . . . . . . . . . . . . . . Ally Attacks 885 | . . . . . . 47 23 73 3 86 46 55 . 98 105 83 51 92 23 78 22 Total Damage 28609 | . . . . . . 619 611 2135 32 2341 2487 1946 . 3293 3430 2764 1791 2884 569 2944 763 Kills 154 | . . . . . . 6 7 16 1 12 11 13 . 20 11 12 14 13 3 12 3 Allies Corrupted 8 | . . . . . . . . 1 . 1 . . . 1 2 . 1 . . 2 . Allies Melted 1 | . . . . . . . . . . . . . . 1 . . . . . . . Intel | -11 -10 -9 -8 -8 -7 -7 -7 -7 -6 -6 -5 -5 -4 -4 -3 -3 -2 -2 -1 -1 -1 ------- Run | Yrd Mat Mat Mat Sto Fac Gar Fac Gar Fac Gar Fac Gar Fac Gar Res Gar Res Gar Acc Gar Acc Active Infowar (turns) 4380 | . 334 . . . 459 3026 561 . . . . . . . . . . . . . . Optics 4046 | . . . . . 459 3026 561 . . . . . . . . . . . . . . Structural 104 | . 104 . . . . . . . . . . . . . . . . . . . . Seismic 324 | . 324 . . . . . . . . . . . . . . . . . . . . Robot Analysis Total 1 | . . . . . . . . . . . 1 . . . . . . . . . . Derelict Logs Recovered . | . . . . . . . . . . . . . . . . . . . . . . Drone Launches 2 | . . . . . . 2 . . . . . . . . . . . . . . . Drone Recoveries 1 | . . . . . . 1 . . . . . . . . . . . . . . . Exploration | -11 -10 -9 -8 -8 -7 -7 -7 -7 -6 -6 -5 -5 -4 -4 -3 -3 -2 -2 -1 -1 -1 ------------- Run | Yrd Mat Mat Mat Sto Fac Gar Fac Gar Fac Gar Fac Gar Fac Gar Res Gar Res Gar Acc Gar Acc Turns Passed 22067 | 39 415 1241 1717 413 1142 3026 631 1371 225 1995 779 992 59 1391 892 1345 764 1638 342 1019 631 Spaces Moved 10575 | 37 220 745 992 238 812 1273 241 590 113 863 371 383 29 630 418 629 401 790 177 403 220 Core 1 | 1 . . . . . . . . . . . . . . . . . . . . . Treads 1905 | . . . . . . . . . . . . . . . . . 315 790 177 403 220 Legs 5162 | . . . 3 . . 806 241 590 113 863 371 383 29 630 418 629 86 . . . . Wheels 3507 | 36 220 745 989 238 812 467 . . . . . . . . . . . . . . . Hover . | . . . . . . . . . . . . . . . . . . . . . . Flight . | . . . . . . . . . . . . . . . . . . . . . . Fastest Speed 50 | 50 80 116 116 120 115 115 190 185 182 182 187 187 188 188 186 186 155 160 160 160 160 Average Speed 171 | 79 104 117 132 127 115 203 246 191 184 191 189 233 188 189 186 186 162 160 160 185 249 Slowest Speed 480 | 80 140 135 480 145 130 270 265 265 185 330 190 262 188 190 190 186 320 160 160 250 250 Overloaded Moves . | . . . . . . . . . . . . . . . . . . . . . . Propulsion Burnouts . | . . . . . . . . . . . . . . . . . . . . . . Robots Hopped . | . . . . . . . . . . . . . . . . . . . . . . Potential Cave-ins 3 | . . . . . . 3 . . . . . . . . . . . . . . . Cave-ins Triggered 1 | . . . . . . 1 . . . . . . . . . . . . . . . Exploration Rate (%) 40 | 4 51 68 86 51 26 97 8 72 3 64 16 36 1 64 17 79 12 85 9 46 5 Regions Visited 21 Branch Regions 1 Pre-discovered Areas 4 | . 1 1 1 . 1 . . . . . . . . . . . . . . . . Known Exits Taken 10 | . . . 1 1 1 . 1 . 1 . 1 . 1 . 1 . 1 . 1 . . Unknown Exits Taken 3 | 1 1 1 . . . . . . . . . . . . . . . . . . . Scrap Searched . | . . . . . . . . . . . . . . . . . . . . . . Spaces Dug 80 | . . 20 15 . . 1 . . . . 2 4 . 2 3 . 7 12 . 13 1 Terrain Destroyed 943 | . . 29 232 108 89 172 41 1 . 70 4 6 . 12 15 50 9 24 6 67 8 Melee . | . . . . . . . . . . . . . . . . . . . . . . Projectile 174 | . . . 8 3 1 8 1 1 . 7 4 6 . 12 15 5 9 24 6 56 8 AOE 769 | . . 29 224 105 88 164 40 . . 63 . . . . . 45 . . . 11 . Terrain Rammed . | . . . . . . . . . . . . . . . . . . . . . . Walls Destroyed . | . . . . . . . . . . . . . . . . . . . . . . Machines Disabled . | . . . . . . . . . . . . . . . . . . . . . . Actions | -11 -10 -9 -8 -8 -7 -7 -7 -7 -6 -6 -5 -5 -4 -4 -3 -3 -2 -2 -1 -1 -1 --------- Run | Yrd Mat Mat Mat Sto Fac Gar Fac Gar Fac Gar Fac Gar Fac Gar Res Gar Res Gar Acc Gar Acc Total 13216 | 43 323 952 1231 307 966 1554 269 771 129 1115 425 455 34 783 502 758 490 1056 212 562 279 Wait 680 | . 39 66 55 26 89 33 3 11 . 79 9 5 5 27 16 19 14 111 9 45 19 Move 10545 | 36 219 744 991 237 811 1271 240 588 112 861 370 381 28 628 417 627 400 788 176 401 219 Hop . | . . . . . . . . . . . . . . . . . . . . . . Pick Up 206 | 1 13 16 21 . 11 21 2 18 4 27 1 10 . 14 3 10 2 21 . 8 3 Fast Attach 115 | 6 3 7 14 5 5 11 . 4 5 8 2 7 . 3 10 1 11 9 1 3 . Attach 133 | . 1 13 15 5 2 19 1 9 . 15 6 3 1 8 5 5 8 7 4 3 3 Detach 15 | . . 3 2 . 1 1 . 1 1 . . 1 . 1 1 . . 3 . . . Swap 172 | . 1 4 9 4 11 10 8 10 2 13 10 3 . 15 5 13 12 12 2 21 7 Drop 179 | . 2 9 23 6 9 10 1 10 5 21 3 9 . 15 13 4 13 17 . 5 4 Fire 966 | . 45 90 101 24 27 92 8 75 . 90 23 33 . 57 32 42 26 81 20 76 24 Melee . | . . . . . . . . . . . . . . . . . . . . . . Ram . | . . . . . . . . . . . . . . . . . . . . . . Kick 2 | . . . . . . . . . . 1 . . . . . . 1 . . . . Crush 2 | . . . . . . . . . . . . . . . . . 2 . . . . Escape Stasis 110 | . . . . . . 61 5 15 . . . . . 15 . 14 . . . . . Rewire 91 | . . . . . . 25 1 30 . . 1 3 . . . 23 1 7 . . . Trap . | . . . . . . . . . . . . . . . . . . . . . . Miscellaneous . | . . . . . . . . . . . . . . . . . . . . . . Route ------- -11/Scrapyard -10/Materials -9/Materials (discovered 3 exits: *Mat x2 / [*Min]) -8/Materials (discovered 4 exits: *Fac x2 / *Sto x2) -8/Storage -7/Factory (discovered 5 exits: *Fac x2 / [*Low x2] / Gar) -7/Garrison (discovered 3 exits: *Fac x3) -7/Factory -7/Garrison (discovered 2 exits: *Fac x2) -6/Factory -6/Garrison -5/Factory -5/Garrison (discovered 3 exits: *Fac x3) -4/Factory -4/Garrison (discovered 2 exits: *Res x2) -3/Research (discovered 2 exits: [*Qua] / Gar) -3/Garrison (discovered 4 exits: *Res x3 / [*Res]) -2/Research (discovered 2 exits: [*Tes] / Gar) -2/Garrison (discovered 3 exits: *Acc x3) -1/Access -1/Garrison -1/Access To Epsilon Eridani History --------- Turn | Location | Event 12 | -11/Scrapyard | Discovered new exit (range 16) 40 | -11/Scrapyard | Entered Materials 291 | -10/Materials | Core integrity fell below 50% 315 | -10/Materials | Build established: Mutant 393 | -10/Materials | Discovered new exit (range 16) 455 | -10/Materials | Entered another Materials area 455 | -9/Materials | Evolved 2 slots: Propulsion x1, Utility x1 969 | -9/Materials | Core integrity fell below 50% 1005 | -9/Materials | Lost 3 parts (1p1n1w) 1205 | -9/Materials | Discovered new exit (range 8) 1397 | -9/Materials | Discovered new exit (range 15) 1522 | -9/Materials | Discovered new exit (range 15) 1615 | -9/Materials | Core integrity fell below 20% 1696 | -9/Materials | Entered another Materials area 1696 | -8/Materials | Evolved 2 slots: Utility x2 1728 | -8/Materials | Garrison activated, responded to threat 1945 | -8/Materials | Lost 5 parts (2n3w) 1949 | -8/Materials | Destroyed 7 combat bots 2029 | -8/Materials | Lost 3 parts (2n1w) 2050 | -8/Materials | Discovered new exit (range 10) 2381 | -8/Materials | Met 7R-MNS 2551 | -8/Materials | Discovered new exit (range 13) 3078 | -8/Materials | Discovered new exit (range 16) 3084 | -8/Materials | Discovered new exit (range 16) 3236 | -8/Materials | Destroyed 7 combat bots 3296 | -8/Materials | First assault squad dispatched 3377 | -8/Materials | Identified exit to Factory 3411 | -8/Materials | Identified exit to Storage 3413 | -8/Materials | Entered Storage 3655 | -8/Storage | Core integrity fell below 50% 3673 | -8/Storage | Core integrity fell below 20% 3734 | -8/Storage | Lost 5 parts (1p2n2u) 3752 | -8/Storage | Discovered exit to Factory (range 16) 3813 | -8/Storage | First assault squad dispatched 3826 | -8/Storage | Entered Factory 3826 | -7/Factory | Evolved 2 slots: Propulsion x1, Utility x1 4118 | -7/Factory | Discovered new exit (range 15) 4244 | -7/Factory | Discovered new exit (range 16) 4282 | -7/Factory | Discovered new exit (range 12) 4638 | -7/Factory | Discovered new exit (range 4) 4967 | -7/Factory | Identified exit to Garrison 4968 | -7/Factory | Entered Garrison 5066 | -7/Garrison | Triggered checkpoint 5075 | -7/Garrison | Triggered checkpoint 5081 | -7/Garrison | Triggered checkpoint 5104 | -7/Garrison | Destroyed 7 combat bots 5108 | -7/Garrison | Crushed by falling debris 5154 | -7/Garrison | Lost 3 parts (1n2w) 5265 | -7/Garrison | Build established: Hacker-Mutant 5359 | -7/Garrison | Discovered new exit (range 11) 5394 | -7/Garrison | Triggered checkpoint 5610 | -7/Garrison | Garrison Relay disabled 5751 | -7/Garrison | Discovered new exit (range 8) 5766 | -7/Garrison | Triggered checkpoint 5851 | -7/Garrison | Triggered checkpoint 5938 | -7/Garrison | Lost 9 parts (1p2n4u2w) 5958 | -7/Garrison | Garrison Relay disabled 6016 | -7/Garrison | Garrison Relay disabled 6078 | -7/Garrison | Build established: Mutant 6213 | -7/Garrison | Core integrity fell below 50% 6344 | -7/Garrison | Triggered checkpoint 6458 | -7/Garrison | Triggered checkpoint 6561 | -7/Garrison | Discovered new exit (range 13) 6644 | -7/Garrison | Triggered checkpoint 6786 | -7/Garrison | Triggered checkpoint 6853 | -7/Garrison | Lost 3 parts (1n2u) 7420 | -7/Garrison | Build established: Scavenger-Mutant 7946 | -7/Garrison | Installed Relay Interface Framework 7994 | -7/Garrison | Entered Factory 8251 | -7/Factory | Build established: Bothacker-Mutant 8394 | -7/Factory | First assault squad dispatched 8553 | -7/Factory | Garrison activated, responded to threat 8617 | -7/Factory | Identified exit to Garrison 8625 | -7/Factory | Entered Garrison 8625 | -7/Garrison | Accompanied by 2 allies 8657 | -7/Garrison | Triggered checkpoint 8685 | -7/Garrison | Garrison Relay disabled 8845 | -7/Garrison | Lost 3 allies 9089 | -7/Garrison | Triggered checkpoint 9101 | -7/Garrison | Triggered checkpoint 9146 | -7/Garrison | Lost 3 allies 9299 | -7/Garrison | Lost 5 allies 9305 | -7/Garrison | Discovered new exit (range 10) 9353 | -7/Garrison | Triggered checkpoint 9365 | -7/Garrison | Garrison Relay disabled 9454 | -7/Garrison | System corruption reached 10% 9663 | -7/Garrison | Triggered checkpoint 9687 | -7/Garrison | Garrison Relay disabled 9871 | -7/Garrison | Lost 4 allies 9917 | -7/Garrison | Core integrity fell below 20% 9931 | -7/Garrison | Discovered new exit (range 11) 9969 | -7/Garrison | Lost 3 allies 9979 | -7/Garrison | Expanded RIF knowledge: Patrol Navigation 9994 | -7/Garrison | System corruption reached 30% 9996 | -7/Garrison | Entered Factory 9996 | -6/Factory | Accompanied by 1 ally 9996 | -6/Factory | Evolved 2 slots: Utility x2 10219 | -6/Factory | Identified exit to Garrison 10221 | -6/Factory | Entered Garrison 10221 | -6/Garrison | Accompanied by 1 ally 10255 | -6/Garrison | Triggered checkpoint 10256 | -6/Garrison | Found embedded Infiltrators 10323 | -6/Garrison | Triggered checkpoint 10324 | -6/Garrison | Spotted B-75 Beast 10335 | -6/Garrison | Hijacked Beast 5a control node with streamctrl_high 10371 | -6/Garrison | Lost 6 allies 10381 | -6/Garrison | Destroyed Beast 5a 10417 | -6/Garrison | Triggered checkpoint 10602 | -6/Garrison | Garrison Relay disabled 10785 | -6/Garrison | Spotted B-75 Beast 10794 | -6/Garrison | Hijacked Beast 5b control node with streamctrl_high 10936 | -6/Garrison | Destroyed Beast 5b 11118 | -6/Garrison | Discovered new exit (range 4) 11155 | -6/Garrison | Triggered checkpoint 11185 | -6/Garrison | Garrison Relay disabled 11394 | -6/Garrison | Found Imp. Powered Armor 11451 | -6/Garrison | Triggered checkpoint 11481 | -6/Garrison | Triggered checkpoint 11525 | -6/Garrison | Spotted B-75 Beast 11525 | -6/Garrison | Spotted B-75 Beast 11580 | -6/Garrison | Lost 5 allies 11599 | -6/Garrison | Triggered checkpoint 11619 | -6/Garrison | Triggered checkpoint 11672 | -6/Garrison | Expanded RIF knowledge: Zone Cloak 11673 | -6/Garrison | Lost 3 allies 11685 | -6/Garrison | Destroyed B-75 Beast 11739 | -6/Garrison | Destroyed B-75 Beast 11763 | -6/Garrison | Lost 3 parts (2n1w) 11894 | -6/Garrison | Garrison Relay disabled 12008 | -6/Garrison | Garrison Relay disabled 12216 | -6/Garrison | Entered Factory 12216 | -5/Factory | Accompanied by 5 allies 12216 | -5/Factory | Evolved 2 slots: Power x1, Utility x1 12428 | -5/Factory | Spotted B-75 Beast 12451 | -5/Factory | Destroyed B-75 Beast 12481 | -5/Factory | Lost 3 allies 12741 | -5/Factory | Lost 5 allies 12993 | -5/Factory | Identified exit to Garrison 12995 | -5/Factory | Entered Garrison 12995 | -5/Garrison | Accompanied by 3 allies 13070 | -5/Garrison | Lost 3 allies 13088 | -5/Garrison | Spotted B-75 Beast 13100 | -5/Garrison | Destroyed B-75 Beast 13152 | -5/Garrison | Discovered new exit (range 32) 13152 | -5/Garrison | Discovered new exit (range 69) 13152 | -5/Garrison | Discovered new exit (range 66) 13351 | -5/Garrison | Triggered checkpoint 13377 | -5/Garrison | Garrison Relay disabled 13513 | -5/Garrison | Triggered checkpoint 13577 | -5/Garrison | Triggered checkpoint 13665 | -5/Garrison | Expanded RIF knowledge: Signal Jamming 13689 | -5/Garrison | Garrison Relay disabled 13785 | -5/Garrison | Found Gamma Bomb Array 13971 | -5/Garrison | Build established: Botlord-Mutant 13987 | -5/Garrison | Entered Factory 13987 | -4/Factory | Accompanied by 6 allies 13987 | -4/Factory | Evolved 2 slots: Propulsion x1, Utility x1 14039 | -4/Factory | Identified exit to Garrison 14046 | -4/Factory | Entered Garrison 14046 | -4/Garrison | Accompanied by 6 allies 14104 | -4/Garrison | Triggered checkpoint 14221 | -4/Garrison | Garrison Relay disabled 14320 | -4/Garrison | Triggered checkpoint 14340 | -4/Garrison | Spotted B-86 Titan 14382 | -4/Garrison | Assimilated Titan 7a with formatsys_high 14393 | -4/Garrison | Lost 11 allies 14532 | -4/Garrison | Triggered checkpoint 14563 | -4/Garrison | Lost 3 allies 14628 | -4/Garrison | Discovered new exit (range 14) 14708 | -4/Garrison | Triggered checkpoint 14924 | -4/Garrison | Triggered checkpoint 14945 | -4/Garrison | Garrison Relay disabled 14967 | -4/Garrison | Found embedded Infiltrators 14968 | -4/Garrison | Triggered checkpoint 15200 | -4/Garrison | Triggered checkpoint 15231 | -4/Garrison | Garrison Relay disabled 15322 | -4/Garrison | Triggered checkpoint 15332 | -4/Garrison | Discovered new exit (range 14) 15362 | -4/Garrison | Expanded RIF knowledge: Program Shield 15437 | -4/Garrison | Entered Research 15437 | -3/Research | Accompanied by 6 allies 15437 | -3/Research | Evolved 2 slots: Utility x2 15923 | -3/Research | Spotted B-86 Titan 15937 | -3/Research | Allies destroyed B-86 Titan 15991 | -3/Research | Lost 5 allies 16158 | -3/Research | Discovered new exit (range 14) 16158 | -3/Research | Spotted B-90 Cyclops 16160 | -3/Research | Assimilated Cyclops 8a with formatsys_high 16309 | -3/Research | Identified exit to Garrison 16329 | -3/Research | Entered Garrison 16329 | -3/Garrison | Accompanied by 4 allies 16467 | -3/Garrison | Triggered checkpoint 16506 | -3/Garrison | Garrison Relay disabled 16643 | -3/Garrison | Spotted B-86 Titan 16646 | -3/Garrison | Triggered checkpoint 16646 | -3/Garrison | Triggered checkpoint 16700 | -3/Garrison | Destroyed 11 combat bots 16727 | -3/Garrison | Lost 7 allies 16776 | -3/Garrison | Destroyed B-86 Titan 16859 | -3/Garrison | Triggered checkpoint 16898 | -3/Garrison | Discovered new exit (range 5) 16954 | -3/Garrison | Discovered new exit (range 11) 16995 | -3/Garrison | Triggered checkpoint 17024 | -3/Garrison | Garrison Relay disabled 17223 | -3/Garrison | Triggered checkpoint 17247 | -3/Garrison | Garrison Relay disabled 17298 | -3/Garrison | Discovered new exit (range 5) 17489 | -3/Garrison | Triggered checkpoint 17567 | -3/Garrison | Expanded RIF knowledge: Autoassimilate 17580 | -3/Garrison | Discovered new exit (range 14) 17630 | -3/Garrison | Found Relay Coupler [Proto] 17665 | -3/Garrison | Lost 4 allies 17674 | -3/Garrison | Entered Research 17674 | -2/Research | Accompanied by 2 allies 17674 | -2/Research | Evolved 2 slots: Propulsion x1, Utility x1 17768 | -2/Research | Discovered new exit (range 16) 18125 | -2/Research | Lost 3 allies 18213 | -2/Research | Found Prototype Launcher 18213 | -2/Research | Identified Com. Tesla Bomb Launcher 18425 | -2/Research | Identified exit to Garrison 18438 | -2/Research | Entered Garrison 18438 | -2/Garrison | Accompanied by 7 allies 18496 | -2/Garrison | Triggered checkpoint 18501 | -2/Garrison | Expanded RIF knowledge: Robot Detection 18566 | -2/Garrison | Garrison Relay disabled 18768 | -2/Garrison | Triggered checkpoint 18785 | -2/Garrison | Triggered checkpoint 18797 | -2/Garrison | Triggered checkpoint 18854 | -2/Garrison | Lost 9 allies 19156 | -2/Garrison | Discovered new exit (range 12) 19232 | -2/Garrison | Triggered checkpoint 19266 | -2/Garrison | Garrison Relay disabled 19430 | -2/Garrison | Discovered new exit (range 11) 19508 | -2/Garrison | Triggered checkpoint 19531 | -2/Garrison | Garrison Relay disabled 19587 | -2/Garrison | Spotted Executioner 19589 | -2/Garrison | Spotted Executioner 19596 | -2/Garrison | Hijacked Executioner control node with streamctrl_high 19609 | -2/Garrison | Allies destroyed Executioner 19611 | -2/Garrison | Found Prototype Device 19611 | -2/Garrison | Identified Adv. Kinecellerator 19641 | -2/Garrison | Found Prototype Processor 19641 | -2/Garrison | Identified Exp. Core Analyzer 19747 | -2/Garrison | Destroyed Executioner 19834 | -2/Garrison | Triggered checkpoint 19861 | -2/Garrison | Garrison Relay disabled 19901 | -2/Garrison | Garrison Relay disabled 19935 | -2/Garrison | Discovered new exit (range 9) 19975 | -2/Garrison | P-80 Master assimilated allied Plague 9b 19988 | -2/Garrison | Found Relay Coupler [Proto] 19992 | -2/Garrison | Found Relay Coupler [Proto] 19995 | -2/Garrison | Found Relay Coupler [Proto] 19998 | -2/Garrison | Found Relay Coupler [Proto] 20076 | -2/Garrison | Entered Access 20076 | -1/Access | Accompanied by 3 allies 20076 | -1/Access | Evolved 2 slots: Utility x1, Weapon x1 20275 | -1/Access | Lost 7 allies 20326 | -1/Access | First assault squad dispatched 20402 | -1/Access | Build established: Botlord-Tank 20414 | -1/Access | Identified exit to Garrison 20418 | -1/Access | Entered Garrison 20418 | -1/Garrison | Accompanied by 2 allies 20471 | -1/Garrison | Spotted B-75 Beast 20479 | -1/Garrison | Spotted B-75 Beast 20510 | -1/Garrison | Rewired B-86 Titan 20517 | -1/Garrison | Allies destroyed B-75 Beast 20521 | -1/Garrison | Rewired B-90 Cyclops 20531 | -1/Garrison | Destroyed B-75 Beast 20771 | -1/Garrison | Spotted B-99 Colossus 20780 | -1/Garrison | Triggered checkpoint 20781 | -1/Garrison | Triggered checkpoint 20784 | -1/Garrison | Triggered checkpoint 20784 | -1/Garrison | Triggered checkpoint 20869 | -1/Garrison | Lost 10 allies 20937 | -1/Garrison | Destroyed B-99 Colossus 21063 | -1/Garrison | Discovered new exit (range 10) 21098 | -1/Garrison | Triggered checkpoint 21208 | -1/Garrison | Expanded RIF knowledge: Autooverride 21260 | -1/Garrison | Garrison Relay disabled 21395 | -1/Garrison | Build established: Botlord-Gunner 21437 | -1/Garrison | Entered Access 21437 | -1/Access | Accompanied by 1 ally 21769 | -1/Access | Build established: Botlord-Tank 22054 | -1/Access | Discovered new exit (range 4) 22068 | *** | Escaped! Last Messages --------------- 21936_ G-73 Enforcer destroyed. 21938_ K-01 Serf collects debris. 21938_ Destroyed Antigrav System. 21938_ W-44 Eye destroyed. 21975_ Dropped Corrupted Particle Reactor. 21978_ Dropped Lgt. Particle Reactor. 21981_ R-10 Processor destroyed. 21988_ P-80 Master Adv. Remote Datajack blasted off. 21988_ P-80 Master destroyed. 22004_ Acquired 176 matter. 22025_ K-01 Serf collects debris. 22029_ Chain reaction triggered in Lgt. Particle Reactor. 22029_ Sealed Barrier breached. 22029_ K-01 Serf collects debris. 22037_ ALERT: Security rotation in progress. 22038_ K-01 Serf collects debris. 22054_ Main Access Shell breached. 22054_ EXIT=FOUND 22057_ K-01 Serf collects debris. [Achievement: One Last FU] Map ----- +----------------------------------------------------+ | ????????????????????????????????????###+#????????? | | ????????????????????????????????????# ????????? | | ????????????????????????????????????? ???????? | | ????????????????????????????????????? % ???????? | | ????????????????????????????????????? ??????? | | ?????????????????????????????????????#! #??????? | | ?????????????????????????????????????#[[#??????" | | ?????????????????????????????????????#%*#?????? | | ?????????????????????????????????????#%="?????? ? | | ???????????????????????????########### #????? ? | | ???????????????????????????# # ##???? ?? | | ???????????????????????????# "%!"#####+#?? | | ???????????????????????????# # | *[= #?? | | ???????????????????????????# [ # [%! *% #?? | | ???????????????????????????# # ##"/"+#### | | ???????????????????????????# + ## | | ???????????????????????????# # ## ! | | ???????????????????????????# # ## ! | | ???????????????????????????#########?# ##= | | ?????????????????????????????????????# ## | | ????????????????????????######"####### ## | | ????????????????????????? " ##! | | ??????????????BB?????????? " ## | | ??????????????BB??????"""""" " ########## | | ??????????????????????" " " #????????? | | ??????????????????????" "@ " * ! #????????? | | ??????????????????????" "" Y ! #????????? | | ??????????????????????" Y " o =!% #????????? | | ??????????????BB??????"""""" " =%%##???????? | | ??????????????BB????????? " =|%!!#???????? | | ??????????????????????? """"T"""k["#???????? | | ??????????????????????########"#######*=##???????? | | ?????????????????????????????????????# #????????? | | ?????????????????????????###########?# #????##### | | ????????????????????????? # #?? | | ?????????????????????????? # # ] | | ??????????????????????????? " + + | | ???????????????????????????? """ # # | | ???????????????????????????? """ + #?? | | ?????????????????????????? " # #???? | | ????????????????????????# # #?????? | | ????????????????????????? ?# #???????? | | ????????????????????????# ?# #????????? | | ????????????????????????# ??# #????????? | | ????????????????????????# ??# #????????? | | ????????????????????????# ???# #????????? | | ?????????????????????????#########???# #????????? | | ?????????????????????????????????????# ########## | | ?????????????????????????????????????# ## | | ?????????????????????????????????????# ## | +----------------------------------------------------+ Best States ------------- Heat Dissipation 56 Coolant Potential 50 Energy Generation 53 Energy Capacity 950 Matter Stores 300 Matter Capacity 300 Sight Range 20 Terrain Scan Density 10 Armor Coverage 1200 Phase Shifting 15 Evasion (%) 55 Targeting Accuracy 8 Launcher Accuracy 20 Core Analysis 8 Armor Integrity Analysis 40 Recoil Reduction 6 Kinecelleration 50 Offensive Hacking 36 Defensive Hacking 10 Relay Coupler Types 7 Relay Coupler Value 109 Item Schematics ----------------- None Robot Schematics ------------------ None Fabricated ------------ Nothing Repaired ---------- Nothing Alien Tech Used ----------------- None Achievements -------------- One Last FU Challenges ------------ None Game ------ Seed SurgeAerolevBoomstick Manual? 0 Play Time 03:58:56 Cumulative 288.9 hours Start 2025.07.26 @ 14:14:13 End 2025.07.26 @ 18:26:46 Sessions 1 Manual Loads 0 Difficulty Rogue Special Mode None Game No. 113 Rogue 42 Adventurer 68 Explorer 3 Win Type 0 Total 24 Types 16/1/1/4/1/0/0/0/0/1 Lore% 74 Gallery% 72 Achievement% 69 Wizard Run 0 Options --------- Layout 0 ASCII 0 Keyboard 0 Movement Numpad Keybinds 0 Fullscreen 1 Font 24/Smallcaps Map View 76x50 Zoom Use 0% Tactical HUD 1 Map Filters NONE Filters NONE Steam 1 RUN: 16f5b562-ccd0-467e-81b9-cc0e52b83b19